fUSD/lending_fUSD_20260405
["ID","MTS","AMOUNT","RATE_DAILY","PERIOD"]
[419740084,1775347844239,-150.0,0.000144,2]
[419740085,1775347844248,-150.0,0.000144,2]
[419740086,1775347844258,-150.0,0.00014489,2]
[419740087,1775347844267,-150.0,0.00014494,2]
[419740088,1775347844278,-150.0,0.000145,2]
[419740089,1775347844288,-150.0,0.00014514,2]
[419740090,1775347844298,-30463.3022051,0.00014516,2]
[419740091,1775347844307,-150.0,0.00014545,2]
[419740092,1775347844316,-150.0,0.0001456,2]
[419740093,1775347844326,-500.0,0.00014565,2]
[419740094,1775347844335,-789.72,0.00014565,2]
[419740095,1775347844344,-500.0,0.00014565,2]
[419740096,1775347844353,-24400.70581365,0.00014567,2]
[419740097,1775347844362,-150.0,0.00014578,2]
[419740098,1775347844371,-150.0,0.00014588,2]
[419740099,1775347844380,-160.0,0.00014598,2]
[419740100,1775347844389,-150.0,0.000146,2]
[419740101,1775347844398,-600.0,0.00014607,2]
[419740102,1775347844407,-375.11,0.00014607,2]
[419740103,1775347844416,-150.0,0.00014629,2]
[419740104,1775347844425,-150.0,0.00014667,2]
[419740105,1775347844435,-150.0,0.00014667,2]
[419740106,1775347844445,-602.78280616,0.00014668,2]
[419740107,1775347844456,-1500.0,0.00014668,2]
[419740108,1775347844466,-1304.0322388,0.00014668,2]
[419740109,1775347844475,-1500.0,0.00014668,2]
[419740110,1775347844487,-1339.64282887,0.00014668,2]
[419740111,1775347844496,-1500.0,0.00014668,2]
[419740112,1775347844506,-1323.48036227,0.00014668,2]
[419740113,1775347844516,-1500.0,0.00014668,2]
[419740114,1775347844525,-150.0,0.00014682,2]
[419740115,1775347844534,-150.0,0.00014691,2]
[419740116,1775347844543,-150.0,0.000147,2]
[419740117,1775347844552,-150.0,0.0001472,2]
[419740118,1775347844561,-150.0,0.0001472,2]
[419740119,1775347844570,-150.0,0.00014743,2]
[419740120,1775347844579,-150.0,0.00014756,2]
[419740121,1775347844588,-150.0,0.00014776,2]
[419740122,1775347844597,-150.0,0.000148,2]
[419740123,1775347844606,-794.38,0.0001482,2]
[419740124,1775347844615,-500.0,0.0001482,2]
[419740125,1775347844625,-500.0,0.0001482,2]
[419740126,1775347844634,-500.0,0.0001482,2]
[419740127,1775347844644,-500.0,0.0001482,2]
[419740128,1775347844654,-500.0,0.0001482,2]
[419740129,1775347844663,-1000.0,0.00014821,2]
[419740130,1775347844673,-1000.0,0.00014821,2]
[419740131,1775347844683,-1000.0,0.00014821,2]
[419740132,1775347844692,-1000.0,0.00014821,2]
[419740133,1775347844702,-1000.0,0.00014821,2]
[419740134,1775347844712,-501.76874276,0.00014821,2]
[419740135,1775347844721,-1000.0,0.00014821,2]
[419740136,1775347844731,-420.32389809,0.00014821,2]
[419740137,1775347844741,-1000.0,0.00014821,2]
[419740138,1775347844751,-1000.0,0.00014821,2]
[419740139,1775347844761,-1000.0,0.00014821,2]
[419740140,1775347844770,-1000.0,0.00014821,2]
[419740141,1775347844780,-500.0,0.00014821,2]
[419740142,1775347844789,-1000.0,0.00014821,2]
[419740143,1775347844800,-1000.0,0.00014821,2]
[419740144,1775347844809,-1000.0,0.00014821,2]
[419740145,1775347844819,-1000.0,0.00014821,2]
[419740146,1775347844828,-1000.0,0.00014821,2]
[419740147,1775347844838,-1000.0,0.00014821,2]
[419740148,1775347844847,-1000.0,0.00014821,2]
[419740149,1775347844857,-1000.0,0.00014821,2]
[419740150,1775347844866,-502.59758452,0.00014821,2]
[419740151,1775347844875,-1000.0,0.00014821,2]
[419740152,1775347844885,-952.51047759,0.00014821,2]
[419740153,1775347844894,-1000.0,0.00014821,2]
[419740154,1775347844904,-1000.0,0.00014821,2]
[419740155,1775347844916,-1000.0,0.00014821,2]
[419740156,1775347844926,-1000.0,0.00014821,2]
[419740157,1775347844935,-1000.0,0.00014821,2]
[419740158,1775347844945,-1000.0,0.00014821,2]
[419740159,1775347844954,-1000.0,0.00014821,2]
[419740160,1775347844964,-1000.0,0.00014821,2]
[419740161,1775347844973,-211.98761601,0.00014821,2]
[419740162,1775347844983,-1000.0,0.00014821,2]
[419740163,1775347844995,-1000.0,0.00014821,2]
[419740164,1775347845005,-1000.0,0.00014821,2]
[419740165,1775347845015,-1000.0,0.00014821,2]
[419740166,1775347845024,-1000.0,0.00014821,2]
[419740167,1775347845033,-502.01968107,0.00014821,2]
[419740168,1775347845044,-1000.0,0.00014821,2]
[419740169,1775347845054,-1000.0,0.00014821,2]
[419740170,1775347845063,-1000.0,0.00014821,2]
[419740171,1775347845072,-24400.70581365,0.00014833,2]
[419740172,1775347845082,-150.0,0.00014836,2]
[419740173,1775347845091,-150.0,0.00014844,2]
[419740174,1775347845100,-150.0,0.00014857,2]
[419740175,1775347845110,-150.0,0.00014871,2]
[419740176,1775347845119,-284.91,0.00014873,2]
[419740177,1775347845128,-150.0,0.0001488,2]
[419740178,1775347845138,-150.0,0.000149,2]
[419740179,1775347845147,-14200.0,0.000149,5]
[419740180,1775347845155,-1100.0,0.000149,5]
[419740181,1775347845165,-289.5275225,0.00014908,2]
[419740182,1775347845174,-150.0,0.00014933,2]
[419740183,1775347845183,-150.0,0.00014933,2]
[419740184,1775347845193,-150.0,0.00014933,2]
[419740185,1775347845203,-256.34,0.0001495,2]
[419740186,1775347845213,-150.0,0.00014965,2]
[419740187,1775347845222,-150.0,0.00014971,2]
[419740188,1775347845231,-30463.3022051,0.00014972,2]
[419740189,1775347845241,-150.0,0.00014982,2]
[419740190,1775347845251,-300.0,0.00015,2]
[419740191,1775347845261,-150.0,0.00015,2]
[419740192,1775347845270,-2066.9138431,0.00015,2]
[419740193,1775347845279,-8046.6493126,0.00015,2]
[419740194,1775347845288,-223387.1907086,0.00015,7]
[419740195,1775347845297,-5000.0,0.0001501,2]
[419740196,1775347845306,-5000.0,0.0001501,2]
[419740197,1775347845315,-150.0,0.00015022,2]
[419740198,1775347845324,-4609.0,0.00015023,2]
[419740199,1775347845333,-151.0,0.00015035,2]
[419740200,1775347845342,-150.0,0.0001504,2]
[419740201,1775347845351,-150.0,0.0001504,2]
[419740202,1775347845361,-578.73530176,0.0001505,2]
[419740203,1775347845370,-5340.62011418,0.0001505,2]
[419740204,1775347845379,-150.0,0.00015059,2]
[419740205,1775347845389,-900.0,0.00015068,2]
[419740206,1775347845398,-5391.41,0.00015068,2]
[419740207,1775347845408,-800.0,0.00015068,2]
[419740208,1775347845417,-150.0,0.00015086,2]
[419740209,1775347845426,-150.0,0.000151,2]
[419740210,1775347845435,-24400.70581365,0.000151,2]
[419740211,1775347845445,-757.16702661,0.00015103,2]
[419740212,1775347845456,-490.51757922,0.00015106,2]
[419740213,1775347845465,-996.27077642,0.00015106,2]
[419740214,1775347845474,-150.0,0.00015111,2]
[419740215,1775347845483,-150.0,0.00015127,2]
[419740216,1775347845492,-881.58,0.00015145,2]
[419740217,1775347845501,-150.0,0.00015153,2]
[419740218,1775347845512,-150.31858386,0.00015153,2]
[419740219,1775347845521,-2000.0,0.00015164,2]
[419740220,1775347845530,-2000.0,0.00015164,2]
[419740221,1775347845539,-2000.0,0.00015164,2]
[419740222,1775347845548,-2000.0,0.00015164,2]
[419740223,1775347845557,-2000.0,0.00015164,2]
[419740224,1775347845566,-2000.0,0.00015164,2]
[419740225,1775347845575,-2000.0,0.00015164,2]
[419740226,1775347845584,-2000.0,0.00015164,2]
[419740227,1775347845593,-2000.0,0.00015164,2]
[419740228,1775347845602,-2000.0,0.00015164,2]
[419740229,1775347845611,-600.0,0.0001518,2]
[419740230,1775347845621,-375.11,0.0001518,2]
[419740232,1775347845630,-150.0,0.000152,2]
[419740234,1775347845639,-150.0,0.000152,2]
[419740236,1775347845648,-150.0,0.000152,2]
[419740238,1775347845657,-150.0,0.000152,2]
[419740240,1775347845666,-150.0,0.000152,2]
[419740243,1775347845675,-10000.0,0.00015205,2]
[419740244,1775347845684,-2000.0,0.00015206,2]
[419740246,1775347845693,-2000.0,0.00015206,2]
[419740248,1775347845702,-2000.0,0.00015206,2]
[419740250,1775347845711,-2000.0,0.00015206,2]
[419740252,1775347845720,-2000.0,0.00015206,2]
[419740254,1775347845729,-2000.0,0.00015206,2]
[419740258,1775347845738,-2000.0,0.00015206,2]
[419740260,1775347845747,-2000.0,0.00015206,2]
[419740263,1775347845755,-2000.0,0.00015206,2]
[419740266,1775347845765,-2000.0,0.00015206,2]
[419740269,1775347845774,-2011.5547996,0.00015216,2]
[419740272,1775347845784,-2000.0,0.00015216,2]
[419740275,1775347845793,-1061.25077082,0.00015216,2]
[419740278,1775347845802,-2000.0,0.00015216,2]
[419740279,1775347845811,-150.0,0.00015247,2]
[419740281,1775347845820,-1000.0,0.00015253,2]
[419740283,1775347845830,-150.0,0.00015273,2]
[419740284,1775347845839,-2000.0,0.00015274,2]
[419740285,1775347845848,-2000.0,0.00015274,2]
[419740286,1775347845858,-2000.0,0.00015274,2]
[419740287,1775347845868,-2000.0,0.00015274,2]
[419740288,1775347845877,-2000.0,0.00015274,2]
[419740289,1775347845886,-2000.0,0.00015274,2]
[419740290,1775347845895,-2000.0,0.00015274,2]
[419740291,1775347845904,-2000.0,0.00015274,2]
[419740292,1775347845914,-2000.0,0.00015274,2]
[419740293,1775347845924,-2000.0,0.00015274,2]
[419740294,1775347845933,-150.0,0.00015289,2]
[419740295,1775347845942,-150.0,0.000153,2]
[419740296,1775347845951,-1517.64,0.000153,2]
[419740297,1775347845960,-150.0,0.00015314,2]
[419740298,1775347845969,-150.0,0.00015341,2]
[419740299,1775347845979,-150.0,0.0001536,2]
[419740300,1775347845987,-150.0,0.0001536,2]
[419740301,1775347845996,-24400.70581365,0.00015367,2]
[419740302,1775347846005,-227.11140597,0.00015368,2]
[419740303,1775347846015,-1500.0,0.00015368,2]
[419740304,1775347846024,-501.3800559,0.00015368,2]
[419740305,1775347846033,-1500.0,0.00015368,2]
[419740306,1775347846042,-1500.0,0.00015368,2]
[419740307,1775347846051,-1034.13936617,0.00015368,2]
[419740308,1775347846060,-1500.0,0.00015368,2]
[419740309,1775347846069,-501.43710211,0.00015368,2]
[419740310,1775347846078,-1500.0,0.00015368,2]
[419740311,1775347846087,-1500.0,0.00015368,2]
[419740312,1775347846097,-1500.0,0.00015368,2]
[419740313,1775347846106,-1500.0,0.00015368,2]
[419740314,1775347846115,-1500.0,0.00015368,2]
[419740315,1775347846125,-912.47132242,0.00015368,2]
[419740316,1775347846134,-1597.01949969,0.00015368,2]
[419740317,1775347846144,-1500.0,0.00015368,2]
[419740318,1775347846154,-1013.6791618,0.00015368,2]
[419740319,1775347846163,-1500.0,0.00015368,2]
[419740320,1775347846173,-1567.72486968,0.00015368,2]
[419740321,1775347846182,-1500.0,0.00015368,2]
[419740322,1775347846191,-1005.91875893,0.00015368,2]
[419740323,1775347846200,-1500.0,0.00015368,2]
[419740324,1775347846210,-1500.0,0.00015368,2]
[419740325,1775347846224,-1500.0,0.00015368,2]
[419740326,1775347846235,-1500.0,0.00015368,2]
[419740327,1775347846245,-1500.0,0.00015368,2]
[419740328,1775347846255,-1500.0,0.00015368,2]
[419740329,1775347846264,-1500.0,0.00015368,2]
[419740330,1775347846275,-1500.0,0.00015368,2]
[419740331,1775347846285,-1500.0,0.00015368,2]
[419740332,1775347846295,-1500.0,0.00015368,2]
[419740333,1775347846304,-1500.0,0.00015368,2]
[419740334,1775347846314,-417.87254797,0.00015368,2]
[419740335,1775347846323,-1500.0,0.00015368,2]
[419740336,1775347846333,-150.0,0.00015378,2]
[419740337,1775347846343,-237.61622292,0.00015383,2]
[419740338,1775347846352,-150.0,0.000154,2]
[419740339,1775347846363,-512.53794019,0.000154,2]
[419740340,1775347846372,-256.34,0.00015411,2]
[419740341,1775347846381,-312.33810782,0.00015416,2]
[419740342,1775347846390,-150.0,0.00015418,2]
[419740343,1775347846400,-881.58,0.00015419,2]
[419740344,1775347846410,-255.28364206,0.00015421,2]
[419740345,1775347846419,-150.0,0.00015429,2]
[419740346,1775347846429,-150.0,0.00015435,2]
[419740347,1775347846438,-310.54603629,0.00015437,2]
[419740348,1775347846447,-243.10103436,0.00015437,2]
[419740349,1775347846458,-150.0,0.00015467,2]
[419740350,1775347846467,-150.0,0.00015467,2]
[419740351,1775347846476,-150.0,0.00015467,2]
[419740352,1775347846486,-150.0,0.000155,2]
[419740354,1775347846495,-768.85683146,0.000155,3]
[419740355,1775347846505,-1231.35459603,0.000155,2]
[419740356,1775347846514,-490.51757922,0.00015503,2]
[419740357,1775347846524,-736.0,0.00015505,2]
[419740358,1775347846534,-150.0,0.0001552,2]
[419740359,1775347846544,-150.0,0.00015529,2]
[419740361,1775347846554,-471.0,0.0001554,2]
[419740363,1775347846563,-150.0,0.00015543,2]
[419740365,1775347846573,-150.0,0.00015556,2]
[419740367,1775347846583,-150.0,0.00015564,2]
[419740369,1775347846593,-2909.64347155,0.00015566,2]
[419740371,1775347846603,-5888.0,0.00015576,2]
[419740373,1775347846613,-628.10075338,0.00015597,2]
[419740375,1775347846623,-431.42104867,0.00015599,2]
[419740377,1775347846633,-789.72,0.00015599,2]
[419740379,1775347846642,-474.02553387,0.00015599,2]
[419740382,1775347846652,-150.0,0.000156,2]
[419740384,1775347846661,-2800.0,0.000156,5]
[419740386,1775347846670,-200.0,0.000156,5]
[419740388,1775347846680,-5888.0,0.00015622,2]
[419740390,1775347846690,-150.0,0.00015624,2]
[419740392,1775347846699,-266.57748683,0.00015629,2]
[419740394,1775347846708,-24400.70581365,0.00015633,2]
[419740396,1775347846718,-733.56594586,0.00015634,2]
[419740398,1775347846727,-150.0,0.00015644,2]
[419740400,1775347846740,-150.0,0.00015657,2]
[419740402,1775347846750,-150.0,0.0001568,2]
[419740404,1775347846759,-150.0,0.0001568,2]
[419740406,1775347846768,-185.59,0.0001568,12]
[419740408,1775347846778,-881.58,0.00015693,2]
[419740410,1775347846787,-5244.299,0.00015694,2]
[419740412,1775347846796,-260.821,0.00015694,2]
[419740414,1775347846806,-500.0,0.00015699,2]
[419740416,1775347846817,-150.0,0.000157,2]
[419740419,1775347846827,-2800.0,0.000157,5]
[419740421,1775347846837,-200.0,0.000157,5]
[419740423,1775347846846,-150.0,0.00015709,2]
[419740424,1775347846855,-150.0,0.00015718,2]
[419740427,1775347846865,-102159.95188267,0.0001572,2]
[419740428,1775347846874,-150.0,0.00015733,2]
[419740429,1775347846884,-150.0,0.00015733,2]
[419740430,1775347846893,-705.17565323,0.0001574,2]
[419740431,1775347846903,-500.0,0.00015745,2]
[419740432,1775347846912,-592.55,0.00015745,2]
[419740433,1775347846922,-500.0,0.00015745,2]
[419740434,1775347846931,-970.35,0.00015745,2]
[419740435,1775347846942,-500.0,0.00015745,2]
[419740436,1775347846951,-556.64,0.00015745,2]
[419740437,1775347846961,-532.10572826,0.00015745,2]
[419740438,1775347846970,-674.85638047,0.00015746,2]
[419740439,1775347846979,-475.23244583,0.00015748,2]
[419740440,1775347846989,-5391.41,0.00015753,2]
[419740441,1775347846999,-639.91885538,0.00015761,2]
[419740442,1775347847009,-2500.0,0.00015764,2]
[419740443,1775347847019,-2500.0,0.00015764,2]
[419740444,1775347847029,-237.61622292,0.00015767,2]
[419740445,1775347847039,-465.14048152,0.00015767,2]
[419740446,1775347847048,-150.0,0.00015771,2]
[419740447,1775347847058,-471.0,0.00015788,2]
[419740448,1775347847068,-600.0,0.00015791,2]
[419740449,1775347847079,-794.38,0.00015798,2]
[419740450,1775347847088,-500.0,0.00015798,2]
[419740451,1775347847098,-500.0,0.00015798,2]
[419740452,1775347847108,-224.92074635,0.00015798,2]
[419740453,1775347847118,-417.0959856,0.00015798,2]
[419740454,1775347847129,-500.0,0.00015798,2]
[419740455,1775347847139,-500.0,0.00015799,2]
[419740456,1775347847149,-500.0,0.00015799,2]
[419740457,1775347847159,-500.0,0.00015799,2]
[419740458,1775347847169,-497.49770464,0.00015799,2]
[419740459,1775347847179,-500.0,0.00015799,2]
[419740460,1775347847188,-500.0,0.00015799,2]
[419740461,1775347847198,-500.0,0.00015799,2]
[419740462,1775347847208,-500.0,0.00015799,2]
[419740463,1775347847217,-500.0,0.00015799,2]
[419740464,1775347847228,-500.0,0.00015799,2]
[419740465,1775347847237,-500.0,0.00015799,2]
[419740466,1775347847247,-500.0,0.00015799,2]
[419740467,1775347847256,-500.0,0.00015799,2]
[419740468,1775347847266,-516.99312956,0.00015799,2]
[419740469,1775347847276,-500.0,0.00015799,2]
[419740470,1775347847285,-500.0,0.00015799,2]
[419740471,1775347847295,-500.0,0.00015799,2]
[419740472,1775347847304,-500.0,0.00015799,2]
[419740473,1775347847314,-500.0,0.00015799,2]
[419740474,1775347847324,-500.0,0.00015799,2]
[419740475,1775347847333,-500.0,0.00015799,2]
[419740476,1775347847343,-500.0,0.00015799,2]
[419740477,1775347847352,-500.0,0.00015799,2]
[419740478,1775347847362,-500.0,0.00015799,2]
[419740479,1775347847371,-500.0,0.00015799,2]
[419740480,1775347847381,-500.0,0.00015799,2]
[419740481,1775347847390,-325.59829244,0.00015799,2]
[419740482,1775347847399,-500.0,0.00015799,2]
[419740483,1775347847409,-500.0,0.00015799,2]
[419740484,1775347847419,-500.0,0.00015799,2]
[419740485,1775347847428,-500.0,0.00015799,2]
[419740486,1775347847437,-310.15225552,0.00015799,2]
[419740487,1775347847447,-592.55,0.00015799,2]
[419740488,1775347847456,-592.55,0.00015799,2]
[419740489,1775347847466,-592.55,0.00015799,2]
[419740490,1775347847475,-592.55,0.00015799,2]
[419740491,1775347847484,-592.55,0.00015799,2]
[419740492,1775347847494,-592.55,0.00015799,2]
[419740493,1775347847504,-592.55,0.00015799,2]
[419740494,1775347847513,-592.55,0.00015799,2]
[419740495,1775347847523,-592.55,0.00015799,2]
[419740496,1775347847534,-592.55,0.00015799,2]
[419740497,1775347847544,-592.55,0.00015799,2]
[419740498,1775347847554,-592.55,0.00015799,2]
[419740499,1775347847563,-592.55,0.00015799,2]
[419740500,1775347847572,-592.55,0.00015799,2]
[419740501,1775347847582,-592.55,0.00015799,2]
[419740502,1775347847591,-592.55,0.00015799,2]
[419740503,1775347847601,-592.55,0.00015799,2]
[419740504,1775347847610,-500.0,0.00015799,2]
[419740505,1775347847620,-500.0,0.00015799,2]
[419740506,1775347847629,-500.0,0.00015799,2]
[419740507,1775347847639,-500.0,0.00015799,2]
[419740508,1775347847648,-500.0,0.00015799,2]
[419740509,1775347847658,-500.0,0.00015799,2]
[419740510,1775347847668,-561.59815036,0.00015799,2]
[419740511,1775347847677,-970.35,0.00015799,2]
[419740512,1775347847686,-970.35,0.00015799,2]
[419740513,1775347847696,-970.35,0.00015799,2]
[419740514,1775347847705,-970.35,0.00015799,2]
[419740515,1775347847714,-970.35,0.00015799,2]
[419740516,1775347847724,-970.35,0.00015799,2]
[419740517,1775347847734,-970.35,0.00015799,2]
[419740518,1775347847743,-970.35,0.00015799,2]
[419740519,1775347847752,-970.35,0.00015799,2]
[419740520,1775347847762,-970.35,0.00015799,2]
[419740521,1775347847771,-970.35,0.00015799,2]
[419740522,1775347847781,-970.35,0.00015799,2]
[419740523,1775347847790,-970.35,0.00015799,2]
[419740524,1775347847799,-970.35,0.00015799,2]
[419740525,1775347847809,-970.35,0.00015799,2]
[419740526,1775347847819,-970.35,0.00015799,2]
[419740527,1775347847828,-970.35,0.00015799,2]
[419740528,1775347847838,-500.0,0.00015799,2]
[419740529,1775347847847,-556.64,0.00015799,2]
[419740530,1775347847856,-556.64,0.00015799,2]
[419740531,1775347847866,-556.64,0.00015799,2]
[419740532,1775347847875,-556.64,0.00015799,2]
[419740533,1775347847885,-556.64,0.00015799,2]
[419740534,1775347847895,-556.64,0.00015799,2]
[419740535,1775347847905,-556.64,0.00015799,2]
[419740536,1775347847914,-556.64,0.00015799,2]
[419740537,1775347847925,-556.64,0.00015799,2]
[419740538,1775347847935,-556.64,0.00015799,2]
[419740539,1775347847944,-556.64,0.00015799,2]
[419740540,1775347847953,-556.64,0.00015799,2]
[419740541,1775347847963,-556.64,0.00015799,2]
[419740542,1775347847973,-556.64,0.00015799,2]
[419740543,1775347847983,-556.64,0.00015799,2]
[419740544,1775347847992,-556.64,0.00015799,2]
[419740545,1775347848001,-556.64,0.00015799,2]
[419740546,1775347848011,-500.0,0.00015799,2]
[419740547,1775347848020,-500.0,0.00015799,2]
[419740548,1775347848029,-500.0,0.00015799,2]
[419740549,1775347848287,-500.0,0.00015799,2]
[419740550,1775347848296,-500.0,0.00015799,2]
[419740551,1775347848306,-500.0,0.00015799,2]
[419740552,1775347848315,-500.0,0.00015799,2]
[419740553,1775347848324,-500.0,0.00015799,2]
[419740554,1775347848333,-500.0,0.00015799,2]
[419740555,1775347848343,-500.0,0.00015799,2]
[419740556,1775347848352,-500.0,0.00015799,2]
[419740557,1775347848362,-500.0,0.00015799,2]
[419740558,1775347848371,-500.0,0.00015799,2]
[419740559,1775347848380,-500.0,0.00015799,2]
[419740560,1775347848390,-500.0,0.00015799,2]
[419740561,1775347848399,-500.0,0.00015799,2]
[419740562,1775347848408,-547.23,0.00015799,2]
[419740563,1775347848418,-150.0,0.000158,2]
[419740564,1775347848428,-2800.0,0.000158,5]
[419740565,1775347848438,-200.0,0.000158,5]
[419740566,1775347848447,-150.0,0.00015812,2]
[419740567,1775347848456,-284.91,0.00015818,2]
[419740568,1775347848466,-150.0,0.00015822,2]
[419740569,1775347848475,-600.0,0.00015829,2]
[419740570,1775347848484,-29906.50720721,0.0001584,2]
[419740571,1775347848493,-150.0,0.0001584,2]
[419740572,1775347848503,-150.0,0.00015855,2]
[419740573,1775347848512,-600.0,0.00015867,2]
[419740574,1775347848521,-200.0,0.00015872,2]
[419740575,1775347848531,-471.0,0.00015875,2]
[419740576,1775347848541,-150.0,0.00015886,2]
[419740577,1775347848550,-500.0,0.0001589,2]
[419740578,1775347848560,-500.0,0.0001589,2]
[419740579,1775347848570,-500.0,0.0001589,2]
[419740580,1775347848581,-500.0,0.0001589,2]
[419740581,1775347848590,-500.0,0.0001589,2]
[419740582,1775347848601,-500.0,0.0001589,2]
[419740583,1775347848611,-500.0,0.0001589,2]
[419740584,1775347848621,-500.0,0.0001589,2]
[419740585,1775347848630,-533.81087013,0.0001589,2]
[419740586,1775347848640,-25000.0,0.00015891,3]
[419740587,1775347848652,-22167.04057276,0.000159,2]
[419740588,1775347848661,-150.0,0.000159,2]
[419740589,1775347848670,-176.92215124,0.000159,2]
[419740590,1775347848679,-150.0,0.000159,2]
[419740591,1775347848690,-917.52028059,0.000159,2]
[419740592,1775347848702,-25000.0,0.000159,3]
[419740593,1775347848711,-150.0,0.000159,2]
[419740594,1775347848720,-150.0,0.000159,2]
[419740595,1775347848732,-150.0,0.000159,2]
[419740596,1775347848742,-24400.70581365,0.000159,2]
[419740597,1775347848751,-2800.0,0.000159,5]
[419740598,1775347848761,-2909.64347155,0.000159,2]
[419740599,1775347848770,-380.81489817,0.000159,2]
[419740600,1775347848780,-200.0,0.000159,5]
[419740601,1775347848790,-578.73530176,0.000159,2]
[419740602,1775347848799,-490.51757922,0.000159,2]
[419740603,1775347848809,-5340.62011418,0.000159,2]
[419740604,1775347848820,-170.89,0.000159,2]
[419740605,1775347848830,-757.16702661,0.00015906,2]
[419740606,1775347848840,-150.0,0.00015906,2]
[419740607,1775347848850,-150.0,0.00015911,2]
[419740608,1775347848859,-2000.0,0.00015916,2]
[419740609,1775347848869,-1005.86237591,0.00015916,2]
[419740610,1775347848878,-1506.03594823,0.00015916,2]
[419740611,1775347848887,-973.12015753,0.00015916,2]
[419740612,1775347848897,-1949.27804721,0.00015916,2]
[419740613,1775347848909,-2000.0,0.00015916,2]
[419740614,1775347848919,-2000.0,0.00015916,2]
[419740615,1775347848928,-2000.0,0.00015916,2]
[419740616,1775347848938,-2000.0,0.00015916,2]
[419740617,1775347848948,-2000.0,0.00015916,2]
[419740618,1775347848958,-991.20883345,0.00015916,2]
[419740619,1775347848968,-188.40853878,0.00015916,2]
[419740620,1775347848977,-191.52484632,0.00015916,2]
[419740621,1775347848986,-642.58837708,0.00015916,2]
[419740622,1775347848996,-2000.0,0.00015916,2]
[419740623,1775347849005,-2000.0,0.00015916,2]
[419740624,1775347849014,-2000.0,0.00015916,2]
[419740625,1775347849024,-1504.16512339,0.00015916,2]
[419740626,1775347849034,-914.53177874,0.00015916,2]
[419740627,1775347849045,-1346.12622015,0.00015916,2]
[419740628,1775347849055,-2000.0,0.00015916,2]
[419740629,1775347849064,-2085.8671148,0.00015916,2]
[419740630,1775347849074,-2000.0,0.00015916,2]
[419740631,1775347849084,-2000.0,0.00015916,2]
[419740632,1775347849094,-309.44278836,0.00015925,2]
[419740633,1775347849104,-1246.40830109,0.00015925,2]
[419740634,1775347849114,-170.89,0.00015928,2]
[419740635,1775347849123,-5888.0,0.00015947,2]
[419740636,1775347849132,-170.89,0.00015955,2]
[419740637,1775347849142,-182.0,0.00015957,2]
[419740638,1775347849151,-541.57642834,0.00015958,2]
[419740639,1775347849161,-227.0,0.00015958,2]
[419740640,1775347849170,-210.0,0.00015958,2]
[419740641,1775347849179,-185.0,0.00015958,2]
[419740642,1775347849189,-185.0,0.00015958,2]
[419740643,1775347849198,-325.407609,0.00015958,2]
[419740644,1775347849207,-5000.0,0.0001596,2]
[419740645,1775347849217,-481.66409249,0.00015965,2]
[419740646,1775347849227,-880.34,0.00015967,2]
[419740647,1775347849237,-153.0,0.00015974,2]
[419740648,1775347849247,-794.38,0.00015982,2]
[419740649,1775347849257,-794.38,0.00015982,2]